[Event "January 2 Early 2024"]
[Site "https://www.chess.com"]
[Date "2024.01.02"]
[Round "11"]
[White "Pogorelskikh, Sofia"]
[Black "Musalov, Ruslan"]
[Result "0-1"]
[Board "125"]
[TimeControl "180+1"]
[WhiteFideId "44164548"]
[BlackFideId "4141490"]
[WhiteElo "2291"]
[BlackElo "2421"]
[WhiteTeam "SRB"]
[BlackTeam "RUS"]
[WhiteClock "0:00:00"]
[BlackClock "0:01:12"]

1. e4 {[%clk 0:03:00]}  g6 {[%clk 0:02:58]} 2. d4 {[%clk 0:02:58]}  Bg7 {[%clk 0:02:58]} 3. Be3 {[%clk 0:02:57]}  d6 {[%clk 0:02:58]} 4. Bd3 {[%clk 0:02:56]}  Nf6 {[%clk 0:02:58]} 5. f3 {[%clk 0:02:54]}  O-O {[%clk 0:02:59]} 6. Ne2 {[%clk 0:02:54]}  e5 {[%clk 0:02:59]} 7. c3 {[%clk 0:02:53]}  Nbd7 {[%clk 0:02:51]} 8. Nd2 {[%clk 0:02:53]}  c6 {[%clk 0:02:50]} 9. O-O {[%clk 0:02:51]}  Qe7 {[%clk 0:02:50]} 10. Qc2 {[%clk 0:02:48]}  b5 {[%clk 0:02:48]} 11. a4 {[%clk 0:02:40]}  bxa4 {[%clk 0:02:43]} 12. Rxa4 {[%clk 0:02:38]}  Bb7 {[%clk 0:02:43]} 13. Rfa1 {[%clk 0:02:33]}  exd4 {[%clk 0:02:32]} 14. cxd4 {[%clk 0:02:32]}  Qd8 {[%clk 0:02:11]} 15. Rxa7 {[%clk 0:02:31]}  Rxa7 {[%clk 0:02:12]} 16. Rxa7 {[%clk 0:02:31]}  Qb6 {[%clk 0:02:12]} 17. Ra3 {[%clk 0:02:18]}  d5 {[%clk 0:02:11]} 18. e5 {[%clk 0:02:17]}  Nxe5 {[%clk 0:02:10]} 19. Rb3 {[%clk 0:02:12]}  Qa7 {[%clk 0:02:10]} 20. Rxb7 {[%clk 0:02:12]}  Qxb7 {[%clk 0:02:06]} 21. dxe5 {[%clk 0:02:12]}  Nd7 {[%clk 0:02:06]} 22. f4 {[%clk 0:01:58]}  Rc8 {[%clk 0:02:05]} 23. Nb3 {[%clk 0:01:14]}  Bf8 {[%clk 0:02:01]} 24. e6 {[%clk 0:00:39]}  fxe6 {[%clk 0:02:00]} 25. Nbd4 {[%clk 0:00:39]}  Bc5 {[%clk 0:01:57]} 26. Bxg6 {[%clk 0:00:30]}  Qb4 {[%clk 0:01:49]} 27. Bxh7+ {[%clk 0:00:29]}  Kh8 {[%clk 0:01:50]} 28. Bf2 {[%clk 0:00:21]}  Qc4 {[%clk 0:01:41]} 29. Qxc4 {[%clk 0:00:17]}  dxc4 {[%clk 0:01:41]} 30. Be4 {[%clk 0:00:16]}  Rb8 {[%clk 0:01:26]} 31. Nxe6 {[%clk 0:00:08]}  Rxb2 {[%clk 0:01:26]} 32. Bxc5 {[%clk 0:00:07]}  Rxe2 {[%clk 0:01:26]} 33. Bf3 {[%clk 0:00:05]}  Rxe6 {[%clk 0:01:23]} 34. Bd4+ {[%clk 0:00:05]}  Kg8 {[%clk 0:01:22]} 35. Kf2 {[%clk 0:00:04]}  Nf6 {[%clk 0:01:17]} 36. Be5 {[%clk 0:00:03]}  Nd5 {[%clk 0:01:15]} 37. Be2 {[%clk 0:00:03]}  c3 {[%clk 0:01:13]} 38. Ke1 {[%clk 0:00:01]}  Re8 {[%clk 0:01:11]} 39. Kd1 {[%clk 0:00:00]}  Ra8 {[%clk 0:01:12]} 0-1

[Event "January 2 Early 2024"]
[Site "https://www.chess.com"]
[Date "2024.01.02"]
[Round "11"]
[White "Martin, Lewis"]
[Black "Blanco Diez, David"]
[Result "0-1"]
[Board "126"]
[TimeControl "180+1"]
[WhiteFideId "410551"]
[BlackFideId "32032927"]
[WhiteElo "2291"]
[BlackElo "2411"]
[WhiteTeam "ENG"]
[BlackTeam "ESP"]
[WhiteClock "0:00:46"]
[BlackClock "0:00:24"]

1. c4 {[%clk 0:03:00]}  Nf6 {[%clk 0:02:53]} 2. g3 {[%clk 0:03:00]}  g6 {[%clk 0:02:52]} 3. Bg2 {[%clk 0:03:00]}  Bg7 {[%clk 0:02:52]} 4. Nf3 {[%clk 0:02:58]}  O-O {[%clk 0:02:52]} 5. O-O {[%clk 0:02:59]}  c5 {[%clk 0:02:50]} 6. Nc3 {[%clk 0:02:51]}  d5 {[%clk 0:02:50]} 7. cxd5 {[%clk 0:02:47]}  Nxd5 {[%clk 0:02:51]} 8. Qb3 {[%clk 0:02:43]}  e6 {[%clk 0:02:43]} 9. Rd1 {[%clk 0:02:31]}  Nc6 {[%clk 0:02:41]} 10. e4 {[%clk 0:02:27]}  Nb6 {[%clk 0:02:31]} 11. d3 {[%clk 0:02:18]}  e5 {[%clk 0:02:03]} 12. Be3 {[%clk 0:02:16]}  Be6 {[%clk 0:02:02]} 13. Qa3 {[%clk 0:02:07]}  c4 {[%clk 0:01:57]} 14. d4 {[%clk 0:02:06]}  exd4 {[%clk 0:01:48]} 15. e5 {[%clk 0:01:52]}  d3 {[%clk 0:01:32]} 16. Bc5 {[%clk 0:01:41]}  Re8 {[%clk 0:01:23]} 17. Bd6 {[%clk 0:01:40]}  Bg4 {[%clk 0:01:06]} 18. Re1 {[%clk 0:01:38]}  Qd7 {[%clk 0:00:51]} 19. Rad1 {[%clk 0:01:31]}  Bxf3 {[%clk 0:00:46]} 20. Bxf3 {[%clk 0:01:31]}  Nd4 {[%clk 0:00:45]} 21. Bg2 {[%clk 0:01:13]}  Nc2 {[%clk 0:00:45]} 22. Qa5 {[%clk 0:01:12]}  Nxe1 {[%clk 0:00:43]} 23. Rxe1 {[%clk 0:01:13]}  Qxd6 {[%clk 0:00:23]} 24. exd6 {[%clk 0:01:12]}  Rxe1+ {[%clk 0:00:24]} 25. Bf1 {[%clk 0:00:46]}  d2 {[%clk 0:00:24]} 0-1

[Event "January 2 Early 2024"]
[Site "https://www.chess.com"]
[Date "2024.01.02"]
[Round "11"]
[White "Rios Escobar, Adan"]
[Black "Monpeurt, Cyrielle"]
[Result "1-0"]
[Board "128"]
[TimeControl "180+1"]
[WhiteFideId "3403645"]
[BlackFideId "677400"]
[WhiteElo "2372"]
[BlackElo "2282"]
[WhiteTeam "CHI"]
[BlackTeam "FRA"]
[WhiteClock "0:01:26"]
[BlackClock "0:00:34"]

1. d4 {[%clk 0:02:52]}  Nf6 {[%clk 0:02:58]} 2. g3 {[%clk 0:02:53]}  c5 {[%clk 0:02:58]} 3. d5 {[%clk 0:02:53]}  e6 {[%clk 0:02:58]} 4. c4 {[%clk 0:02:53]}  exd5 {[%clk 0:02:58]} 5. cxd5 {[%clk 0:02:54]}  d6 {[%clk 0:02:59]} 6. Nc3 {[%clk 0:02:55]}  g6 {[%clk 0:02:59]} 7. Nf3 {[%clk 0:02:56]}  Bg7 {[%clk 0:02:59]} 8. Bg2 {[%clk 0:02:56]}  O-O {[%clk 0:02:59]} 9. O-O {[%clk 0:02:57]}  a6 {[%clk 0:03:00]} 10. a4 {[%clk 0:02:58]}  Re8 {[%clk 0:02:59]} 11. Re1 {[%clk 0:02:58]}  Nbd7 {[%clk 0:02:59]} 12. h3 {[%clk 0:02:57]}  Rb8 {[%clk 0:02:56]} 13. Bf4 {[%clk 0:02:51]}  Ne5 {[%clk 0:02:53]} 14. Nxe5 {[%clk 0:02:41]}  dxe5 {[%clk 0:02:53]} 15. Bg5 {[%clk 0:02:42]}  h6 {[%clk 0:02:51]} 16. Bd2 {[%clk 0:02:42]}  b5 {[%clk 0:02:46]} 17. axb5 {[%clk 0:02:42]}  axb5 {[%clk 0:02:46]} 18. e4 {[%clk 0:02:42]}  Re7 {[%clk 0:02:32]} 19. Bf1 {[%clk 0:02:40]}  b4 {[%clk 0:02:27]} 20. Nb5 {[%clk 0:02:40]}  Reb7 {[%clk 0:02:17]} 21. Na7 {[%clk 0:02:38]}  Bd7 {[%clk 0:02:12]} 22. Qc1 {[%clk 0:02:37]}  Qc7 {[%clk 0:02:06]} 23. Nc6 {[%clk 0:02:34]}  Bxc6 {[%clk 0:02:03]} 24. dxc6 {[%clk 0:02:35]}  Qxc6 {[%clk 0:02:03]} 25. Bxh6 {[%clk 0:02:35]}  Rd8 {[%clk 0:01:45]} 26. Bg5 {[%clk 0:02:23]}  Rd4 {[%clk 0:01:30]} 27. Ra6 {[%clk 0:02:11]}  Rb6 {[%clk 0:01:31]} 28. Rxb6 {[%clk 0:02:09]}  Qxb6 {[%clk 0:01:32]} 29. Bxf6 {[%clk 0:01:58]}  Bxf6 {[%clk 0:01:27]} 30. Bc4 {[%clk 0:01:58]}  Qa5 {[%clk 0:01:19]} 31. b3 {[%clk 0:01:51]}  Kg7 {[%clk 0:01:04]} 32. Bd5 {[%clk 0:01:47]}  Qa2 {[%clk 0:01:01]} 33. Qxc5 {[%clk 0:01:40]}  Qd2 {[%clk 0:00:51]} 34. Rf1 {[%clk 0:01:37]}  Rd3 {[%clk 0:00:40]} 35. Qc7 {[%clk 0:01:32]}  Rc3 {[%clk 0:00:37]} 36. Qxf7+ {[%clk 0:01:31]}  Kh6 {[%clk 0:00:34]} 37. Qxf6 {[%clk 0:01:26]} 1-0

[Event "January 2 Early 2024"]
[Site "https://www.chess.com"]
[Date "2024.01.02"]
[Round "11"]
[White "Slavin, Alexey"]
[Black "Kleibel, Uwe"]
[Result "0-1"]
[Board "129"]
[TimeControl "180+1"]
[WhiteFideId "24104388"]
[BlackFideId "1270982"]
[WhiteElo "2254"]
[BlackElo "2350"]
[WhiteTeam "RUS"]
[BlackTeam "GER"]
[WhiteClock "0:00:00"]
[BlackClock "0:00:03"]

1. e4 {[%clk 0:02:51]}  e5 {[%clk 0:02:59]} 2. Nf3 {[%clk 0:02:51]}  Nc6 {[%clk 0:02:59]} 3. c3 {[%clk 0:02:51]}  Nf6 {[%clk 0:02:58]} 4. d4 {[%clk 0:02:51]}  Nxe4 {[%clk 0:02:59]} 5. d5 {[%clk 0:02:51]}  Bc5 {[%clk 0:02:59]} 6. dxc6 {[%clk 0:02:51]}  Bxf2+ {[%clk 0:02:54]} 7. Ke2 {[%clk 0:02:51]}  Bb6 {[%clk 0:02:55]} 8. Qd5 {[%clk 0:02:50]}  Nf2 {[%clk 0:02:55]} 9. cxb7 {[%clk 0:02:50]}  Bxb7 {[%clk 0:02:55]} 10. Qxb7 {[%clk 0:02:49]}  O-O {[%clk 0:02:55]} 11. Bg5 {[%clk 0:02:49]}  f6 {[%clk 0:02:49]} 12. Qd5+ {[%clk 0:02:45]}  Kh8 {[%clk 0:02:49]} 13. Be3 {[%clk 0:02:46]}  Nxh1 {[%clk 0:02:48]} 14. Bxb6 {[%clk 0:02:45]}  axb6 {[%clk 0:02:48]} 15. Nbd2 {[%clk 0:02:45]}  Ra5 {[%clk 0:02:43]} 16. Qb3 {[%clk 0:02:44]}  d5 {[%clk 0:02:43]} 17. g3 {[%clk 0:02:44]}  c5 {[%clk 0:02:35]} 18. Bg2 {[%clk 0:02:43]}  e4 {[%clk 0:02:35]} 19. Nh4 {[%clk 0:02:35]}  Nxg3+ {[%clk 0:02:00]} 20. hxg3 {[%clk 0:02:34]}  Qd6 {[%clk 0:02:01]} 21. Nf5 {[%clk 0:02:27]}  Qe5 {[%clk 0:02:00]} 22. Qxb6 {[%clk 0:02:21]}  Raa8 {[%clk 0:01:52]} 23. g4 {[%clk 0:02:07]}  g6 {[%clk 0:01:50]} 24. Ne3 {[%clk 0:01:56]}  d4 {[%clk 0:01:46]} 25. Nec4 {[%clk 0:01:51]}  d3+ {[%clk 0:01:30]} 26. Kf2 {[%clk 0:01:48]}  Qf4+ {[%clk 0:01:28]} 27. Kg1 {[%clk 0:01:47]}  e3 {[%clk 0:01:08]} 28. Bxa8 {[%clk 0:01:36]}  exd2 {[%clk 0:00:29]} 29. Qd6 {[%clk 0:00:25]}  Qxg4+ {[%clk 0:00:26]} 30. Kf2 {[%clk 0:00:25]}  Qe2+ {[%clk 0:00:18]} 31. Kg3 {[%clk 0:00:25]}  Qe1+ {[%clk 0:00:12]} 32. Kf3 {[%clk 0:00:23]}  d1=Q+ {[%clk 0:00:07]} 33. Rxd1 {[%clk 0:00:22]}  Qxd1+ {[%clk 0:00:08]} 34. Kg3 {[%clk 0:00:20]}  Qe1+ {[%clk 0:00:07]} 35. Kh3 {[%clk 0:00:19]}  Kg7 {[%clk 0:00:07]} 36. Qxd3 {[%clk 0:00:16]}  Qe6+ {[%clk 0:00:06]} 37. Kg3 {[%clk 0:00:15]}  Rxa8 {[%clk 0:00:06]} 38. b3 {[%clk 0:00:15]}  Re8 {[%clk 0:00:07]} 39. a4 {[%clk 0:00:14]}  h5 {[%clk 0:00:07]} 40. a5 {[%clk 0:00:14]}  Qg4+ {[%clk 0:00:07]} 41. Kf2 {[%clk 0:00:14]}  Qf4+ {[%clk 0:00:07]} 42. Qf3 {[%clk 0:00:14]}  Qxf3+ {[%clk 0:00:06]} 43. Kxf3 {[%clk 0:00:14]}  g5 {[%clk 0:00:07]} 44. b4 {[%clk 0:00:13]}  Kg6 {[%clk 0:00:07]} 45. b5 {[%clk 0:00:13]}  g4+ {[%clk 0:00:07]} 46. Kf4 {[%clk 0:00:12]}  f5 {[%clk 0:00:05]} 47. a6 {[%clk 0:00:08]}  Re4+ {[%clk 0:00:05]} 48. Kg3 {[%clk 0:00:08]}  Kg5 {[%clk 0:00:05]} 49. b6 {[%clk 0:00:08]}  h4+ {[%clk 0:00:06]} 50. Kf2 {[%clk 0:00:08]}  g3+ {[%clk 0:00:05]} 51. Kf3 {[%clk 0:00:07]}  Rf4+ {[%clk 0:00:06]} 52. Kg2 {[%clk 0:00:07]}  Rf2+ {[%clk 0:00:06]} 53. Kg1 {[%clk 0:00:08]}  h3 {[%clk 0:00:06]} 54. Ne3 {[%clk 0:00:03]}  h2+ {[%clk 0:00:06]} 55. Kh1 {[%clk 0:00:04]}  Re2 {[%clk 0:00:04]} 56. Nf1 {[%clk 0:00:00]}  g2+ {[%clk 0:00:03]} 0-1

[Event "January 2 Early 2024"]
[Site "https://www.chess.com"]
[Date "2024.01.02"]
[Round "11"]
[White "Schuh, Karsten"]
[Black "Franchini, Gabriele"]
[Result "0-1"]
[Board "130"]
[TimeControl "180+1"]
[WhiteFideId "4637950"]
[BlackFideId "806790"]
[WhiteElo "2350"]
[BlackElo "2217"]
[WhiteTeam "GER"]
[BlackTeam "ITA"]
[WhiteClock "0:00:03"]
[BlackClock "0:01:14"]

1. Nf3 {[%clk 0:03:00]}  d5 {[%clk 0:03:00]} 2. c4 {[%clk 0:03:00]}  dxc4 {[%clk 0:02:57]} 3. Na3 {[%clk 0:03:00]}  g6 {[%clk 0:02:55]} 4. Nxc4 {[%clk 0:02:57]}  Bg7 {[%clk 0:02:55]} 5. g3 {[%clk 0:02:57]}  Nf6 {[%clk 0:02:55]} 6. Bg2 {[%clk 0:02:57]}  O-O {[%clk 0:02:56]} 7. O-O {[%clk 0:02:57]}  c5 {[%clk 0:02:57]} 8. d3 {[%clk 0:02:56]}  Nc6 {[%clk 0:02:57]} 9. Bg5 {[%clk 0:02:50]}  Qc7 {[%clk 0:02:54]} 10. Qd2 {[%clk 0:02:45]}  Be6 {[%clk 0:02:49]} 11. Rac1 {[%clk 0:02:34]}  Rac8 {[%clk 0:02:48]} 12. Bh6 {[%clk 0:02:29]}  Rfd8 {[%clk 0:02:44]} 13. Bxg7 {[%clk 0:02:28]}  Kxg7 {[%clk 0:02:45]} 14. Ne3 {[%clk 0:02:18]}  b6 {[%clk 0:02:43]} 15. a3 {[%clk 0:02:13]}  h6 {[%clk 0:02:39]} 16. Qc2 {[%clk 0:02:12]}  a5 {[%clk 0:02:28]} 17. Qc3 {[%clk 0:02:06]}  Qd7 {[%clk 0:02:23]} 18. Nc4 {[%clk 0:02:03]}  Qa7 {[%clk 0:02:09]} 19. Nfe5 {[%clk 0:01:45]}  Nd4 {[%clk 0:01:59]} 20. Rfe1 {[%clk 0:01:44]}  Bd5 {[%clk 0:01:48]} 21. e4 {[%clk 0:01:17]}  Be6 {[%clk 0:01:48]} 22. h3 {[%clk 0:01:11]}  b5 {[%clk 0:01:44]} 23. Ne3 {[%clk 0:01:10]}  a4 {[%clk 0:01:32]} 24. Rcd1 {[%clk 0:00:35]}  Nb3 {[%clk 0:01:26]} 25. N5g4 {[%clk 0:00:24]}  Nd4 {[%clk 0:01:19]} 26. Nxf6 {[%clk 0:00:22]}  exf6 {[%clk 0:01:20]} 27. f4 {[%clk 0:00:19]}  Bb3 {[%clk 0:01:20]} 28. Rc1 {[%clk 0:00:16]}  c4 {[%clk 0:01:16]} 29. dxc4 {[%clk 0:00:16]}  Rxc4 {[%clk 0:01:14]} 30. Nxc4 {[%clk 0:00:14]}  Ne2+ {[%clk 0:01:13]} 31. Kh2 {[%clk 0:00:10]}  Nxc3 {[%clk 0:01:14]} 32. Rxc3 {[%clk 0:00:03]}  Bxc4 {[%clk 0:01:14]} 0-1

[Event "January 2 Early 2024"]
[Site "https://www.chess.com"]
[Date "2024.01.02"]
[Round "11"]
[White "Yushko, Olga"]
[Black "Korol, Dimitry"]
[Result "0-1"]
[Board "131"]
[TimeControl "180+1"]
[WhiteFideId "14114500"]
[BlackFideId "14108003"]
[WhiteElo "2191"]
[BlackElo "2318"]
[WhiteTeam "UKR"]
[BlackTeam "UKR"]
[WhiteClock "0:00:00"]
[BlackClock "0:00:14"]

1. d4 {[%clk 0:02:59]}  Nf6 {[%clk 0:02:59]} 2. c4 {[%clk 0:03:00]}  c5 {[%clk 0:03:00]} 3. d5 {[%clk 0:03:00]}  b5 {[%clk 0:03:00]} 4. cxb5 {[%clk 0:03:01]}  a6 {[%clk 0:03:00]} 5. b6 {[%clk 0:03:01]}  d6 {[%clk 0:03:00]} 6. Nc3 {[%clk 0:03:02]}  Nbd7 {[%clk 0:03:00]} 7. e4 {[%clk 0:03:02]}  g6 {[%clk 0:03:01]} 8. Nf3 {[%clk 0:03:03]}  Bg7 {[%clk 0:03:01]} 9. h3 {[%clk 0:03:03]}  O-O {[%clk 0:03:01]} 10. Bd3 {[%clk 0:03:03]}  Nxb6 {[%clk 0:03:01]} 11. O-O {[%clk 0:03:03]}  e6 {[%clk 0:03:02]} 12. dxe6 {[%clk 0:03:02]}  Bxe6 {[%clk 0:03:03]} 13. Bf4 {[%clk 0:02:59]}  d5 {[%clk 0:03:03]} 14. exd5 {[%clk 0:02:57]}  Nfxd5 {[%clk 0:03:03]} 15. Nxd5 {[%clk 0:02:51]}  Nxd5 {[%clk 0:03:04]} 16. Bg5 {[%clk 0:02:50]}  Qb6 {[%clk 0:02:32]} 17. Rb1 {[%clk 0:02:47]}  h6 {[%clk 0:02:28]} 18. Bh4 {[%clk 0:02:43]}  Nf4 {[%clk 0:01:26]} 19. Be4 {[%clk 0:02:35]}  Rac8 {[%clk 0:01:25]} 20. b3 {[%clk 0:02:26]}  Qb4 {[%clk 0:00:58]} 21. Qc2 {[%clk 0:02:10]}  Rfe8 {[%clk 0:00:45]} 22. Bg3 {[%clk 0:02:05]}  Nd5 {[%clk 0:00:44]} 23. Bxd5 {[%clk 0:01:31]}  Bxd5 {[%clk 0:00:45]} 24. Rfe1 {[%clk 0:01:31]}  Be4 {[%clk 0:00:42]} 25. Rxe4 {[%clk 0:01:00]}  Qxe4 {[%clk 0:00:43]} 26. Qc1 {[%clk 0:00:57]}  Qd3 {[%clk 0:00:34]} 27. Ne1 {[%clk 0:00:50]}  Qe2 {[%clk 0:00:32]} 28. Nf3 {[%clk 0:00:27]}  Qxa2 {[%clk 0:00:22]} 29. Bf4 {[%clk 0:00:16]}  Kh7 {[%clk 0:00:21]} 30. Bd6 {[%clk 0:00:15]}  c4 {[%clk 0:00:19]} 31. bxc4 {[%clk 0:00:08]}  Rxc4 {[%clk 0:00:19]} 32. Qf1 {[%clk 0:00:07]}  Rc2 {[%clk 0:00:16]} 33. Rd1 {[%clk 0:00:00]}  Rd8 {[%clk 0:00:14]} 0-1

[Event "January 2 Early 2024"]
[Site "https://www.chess.com"]
[Date "2024.01.02"]
[Round "11"]
[White "Hartikainen, Jarmo"]
[Black "Mendez Fortes, Eduardo Jesus"]
[Result "1-0"]
[Board "133"]
[TimeControl "180+1"]
[WhiteFideId "503134"]
[BlackFideId "3502376"]
[WhiteElo "2159"]
[BlackElo "2571"]
[WhiteTeam "FIN"]
[BlackTeam "CUB"]
[WhiteClock "0:02:36"]
[BlackClock "0:02:38"]

1. e4 {[%clk 0:03:00]}  c5 {[%clk 0:02:58]} 2. c3 {[%clk 0:03:00]}  Nf6 {[%clk 0:02:57]} 3. e5 {[%clk 0:03:00]}  Nd5 {[%clk 0:02:58]} 4. d4 {[%clk 0:03:01]}  cxd4 {[%clk 0:02:59]} 5. Nf3 {[%clk 0:03:01]}  Nc6 {[%clk 0:03:00]} 6. cxd4 {[%clk 0:03:01]}  d6 {[%clk 0:02:57]} 7. Nc3 {[%clk 0:03:01]}  Nxc3 {[%clk 0:02:53]} 8. bxc3 {[%clk 0:03:01]}  dxe5 {[%clk 0:02:53]} 9. d5 {[%clk 0:03:01]}  Nb8 {[%clk 0:02:53]} 10. Nxe5 {[%clk 0:02:58]}  Nd7 {[%clk 0:02:51]} 11. Bb5 {[%clk 0:02:53]}  a6 {[%clk 0:02:51]} 12. Qf3 {[%clk 0:02:48]}  f6 {[%clk 0:02:39]} 13. Qh5+ {[%clk 0:02:46]}  g6 {[%clk 0:02:39]} 14. Nxg6 {[%clk 0:02:47]}  Kf7 {[%clk 0:02:39]} 15. Ne5+ {[%clk 0:02:36]}  Kg7 {[%clk 0:02:38]} 16. Qf7# {[%clk 0:02:36]} 1-0

[Event "January 2 Early 2024"]
[Site "https://www.chess.com"]
[Date "2024.01.02"]
[Round "11"]
[White "Todev, Simeon"]
[Black "Cardozo Munar, Carlos Eduardo"]
[Result "1-0"]
[Board "137"]
[TimeControl "180+1"]
[WhiteFideId "2925133"]
[BlackFideId "4409477"]
[WhiteElo "2362"]
[BlackElo "2269"]
[WhiteTeam "BUL"]
[BlackTeam "COL"]
[WhiteClock "0:00:14"]
[BlackClock "0:00:04"]

1. e4 {[%clk 0:02:53]}  e6 {[%clk 0:02:47]} 2. d4 {[%clk 0:02:51]}  d5 {[%clk 0:02:47]} 3. exd5 {[%clk 0:02:52]}  exd5 {[%clk 0:02:47]} 4. Nf3 {[%clk 0:02:52]}  Bd6 {[%clk 0:02:47]} 5. Bd3 {[%clk 0:02:53]}  Ne7 {[%clk 0:02:47]} 6. O-O {[%clk 0:02:54]}  O-O {[%clk 0:02:47]} 7. Nbd2 {[%clk 0:02:54]}  Nbc6 {[%clk 0:02:48]} 8. c4 {[%clk 0:02:55]}  dxc4 {[%clk 0:02:47]} 9. Nxc4 {[%clk 0:02:56]}  Bg4 {[%clk 0:02:47]} 10. Ne3 {[%clk 0:02:51]}  Bh5 {[%clk 0:02:46]} 11. Bxh7+ {[%clk 0:02:43]}  Kxh7 {[%clk 0:02:28]} 12. Ng5+ {[%clk 0:02:43]}  Kh6 {[%clk 0:02:24]} 13. g4 {[%clk 0:02:20]}  Bg6 {[%clk 0:02:10]} 14. Nf5+ {[%clk 0:02:13]}  Nxf5 {[%clk 0:02:05]} 15. Nxf7+ {[%clk 0:02:09]}  Kh7 {[%clk 0:02:05]} 16. Nxd8 {[%clk 0:02:08]}  Nfxd4 {[%clk 0:02:05]} 17. Nxc6 {[%clk 0:02:06]}  Nf3+ {[%clk 0:01:58]} 18. Kg2 {[%clk 0:01:41]}  Be4 {[%clk 0:01:49]} 19. Kh3 {[%clk 0:01:35]}  Kg6 {[%clk 0:01:42]} 20. Qxd6+ {[%clk 0:00:45]}  cxd6 {[%clk 0:01:38]} 21. Ne7+ {[%clk 0:00:45]}  Kf7 {[%clk 0:01:35]} 22. Nf5 {[%clk 0:00:41]}  Rh8+ {[%clk 0:01:32]} 23. Kg3 {[%clk 0:00:37]}  Rxh2 {[%clk 0:01:29]} 24. Nxd6+ {[%clk 0:00:34]}  Ke6 {[%clk 0:01:26]} 25. Nxe4 {[%clk 0:00:35]}  Rah8 {[%clk 0:01:19]} 26. Kxf3 {[%clk 0:00:28]}  Ke5 {[%clk 0:01:16]} 27. Bf4+ {[%clk 0:00:27]}  Ke6 {[%clk 0:00:08]} 28. Bxh2 {[%clk 0:00:26]}  g5 {[%clk 0:00:07]} 29. Nxg5+ {[%clk 0:00:25]}  Kd7 {[%clk 0:00:06]} 30. Be5 {[%clk 0:00:24]}  Rg8 {[%clk 0:00:05]} 31. Bf4 {[%clk 0:00:23]}  b5 {[%clk 0:00:05]} 32. Rfd1+ {[%clk 0:00:23]}  Kc6 {[%clk 0:00:05]} 33. Rac1+ {[%clk 0:00:24]}  Kb7 {[%clk 0:00:05]} 34. Rd7+ {[%clk 0:00:23]}  Kb6 {[%clk 0:00:05]} 35. Be3+ {[%clk 0:00:19]}  Ka5 {[%clk 0:00:04]} 36. Rxa7+ {[%clk 0:00:14]}  Kb4 {[%clk 0:00:04]} 37. Bc5# {[%clk 0:00:14]} 1-0

[Event "January 2 Early 2024"]
[Site "https://www.chess.com"]
[Date "2024.01.02"]
[Round "11"]
[White "Cueto, Jonny"]
[Black "Agrest, Inna"]
[Result "0-1"]
[Board "138"]
[TimeControl "180+1"]
[WhiteFideId "3300145"]
[BlackFideId "1708830"]
[WhiteElo "2250"]
[BlackElo "2343"]
[WhiteTeam "BOL"]
[BlackTeam "SWE"]
[WhiteClock "0:00:00"]
[BlackClock "0:00:25"]

1. d4 {[%clk 0:03:00]}  Nf6 {[%clk 0:02:58]} 2. Bf4 {[%clk 0:03:01]}  g6 {[%clk 0:02:58]} 3. Nc3 {[%clk 0:03:00]}  d5 {[%clk 0:02:58]} 4. e3 {[%clk 0:03:00]}  Bg7 {[%clk 0:02:58]} 5. h4 {[%clk 0:03:01]}  h5 {[%clk 0:02:57]} 6. Be2 {[%clk 0:03:00]}  c6 {[%clk 0:02:55]} 7. Nf3 {[%clk 0:03:00]}  Bg4 {[%clk 0:02:54]} 8. Ne5 {[%clk 0:02:59]}  Bxe2 {[%clk 0:02:53]} 9. Qxe2 {[%clk 0:03:00]}  Nbd7 {[%clk 0:02:53]} 10. O-O-O {[%clk 0:03:00]}  Qa5 {[%clk 0:02:48]} 11. Kb1 {[%clk 0:02:59]}  Nxe5 {[%clk 0:02:45]} 12. Bxe5 {[%clk 0:02:52]}  O-O-O {[%clk 0:02:31]} 13. f3 {[%clk 0:02:52]}  Ne8 {[%clk 0:02:24]} 14. Bxg7 {[%clk 0:02:43]}  Nxg7 {[%clk 0:02:25]} 15. Rd3 {[%clk 0:02:43]}  Rhe8 {[%clk 0:02:23]} 16. a3 {[%clk 0:02:08]}  e5 {[%clk 0:02:22]} 17. dxe5 {[%clk 0:02:08]}  Rxe5 {[%clk 0:02:21]} 18. Rhd1 {[%clk 0:02:09]}  Rde8 {[%clk 0:02:16]} 19. Na2 {[%clk 0:02:03]}  Nf5 {[%clk 0:02:07]} 20. e4 {[%clk 0:01:00]}  dxe4 {[%clk 0:02:04]} 21. Rd7 {[%clk 0:01:00]}  exf3 {[%clk 0:01:58]} 22. Qxf3 {[%clk 0:01:01]}  Re1 {[%clk 0:01:52]} 23. Nb4 {[%clk 0:00:54]}  Rxd1+ {[%clk 0:01:32]} 24. Qxd1 {[%clk 0:00:47]}  Rd8 {[%clk 0:01:22]} 25. Rxd8+ {[%clk 0:00:34]}  Qxd8 {[%clk 0:01:23]} 26. Qe1 {[%clk 0:00:34]}  Nxh4 {[%clk 0:01:18]} 27. Qf2 {[%clk 0:00:24]}  a6 {[%clk 0:01:07]} 28. Qxf7 {[%clk 0:00:23]}  Kb8 {[%clk 0:01:00]} 29. Nd3 {[%clk 0:00:22]}  g5 {[%clk 0:00:45]} 30. b3 {[%clk 0:00:17]}  Nxg2 {[%clk 0:00:43]} 31. Qxh5 {[%clk 0:00:14]}  Nf4 {[%clk 0:00:41]} 32. Qf7 {[%clk 0:00:14]}  Nxd3 {[%clk 0:00:39]} 33. cxd3 {[%clk 0:00:08]}  Qxd3+ {[%clk 0:00:39]} 34. Kc1 {[%clk 0:00:07]}  Qe3+ {[%clk 0:00:36]} 35. Kd1 {[%clk 0:00:05]}  Ka7 {[%clk 0:00:32]} 36. Qf8 {[%clk 0:00:03]}  g4 {[%clk 0:00:30]} 37. b4 {[%clk 0:00:03]}  g3 {[%clk 0:00:29]} 38. Qg8 {[%clk 0:00:02]}  Qf3+ {[%clk 0:00:25]} 39. Ke1 {[%clk 0:00:02]}  Qf2+ {[%clk 0:00:25]} 40. Kd1 {[%clk 0:00:00]}  g2 {[%clk 0:00:25]} 0-1

[Event "January 2 Early 2024"]
[Site "https://www.chess.com"]
[Date "2024.01.02"]
[Round "11"]
[White "Chirivi C, Jenny Astrid"]
[Black "Pavlidou, Ekaterini"]
[Result "0-1"]
[Board "139"]
[TimeControl "180+1"]
[WhiteFideId "4403061"]
[BlackFideId "4213262"]
[WhiteElo "2231"]
[BlackElo "2327"]
[WhiteTeam "COL"]
[BlackTeam "GRE"]
[WhiteClock "0:00:00"]
[BlackClock "0:01:37"]

1. d4 {[%clk 0:03:00]}  f5 {[%clk 0:02:58]} 2. c4 {[%clk 0:02:59]}  Nf6 {[%clk 0:02:59]} 3. g3 {[%clk 0:02:56]}  d6 {[%clk 0:02:59]} 4. Bg2 {[%clk 0:02:55]}  g6 {[%clk 0:02:59]} 5. Nf3 {[%clk 0:02:53]}  Bg7 {[%clk 0:02:59]} 6. O-O {[%clk 0:02:53]}  O-O {[%clk 0:02:58]} 7. Nc3 {[%clk 0:02:54]}  c6 {[%clk 0:02:58]} 8. Rb1 {[%clk 0:02:49]}  Ne4 {[%clk 0:02:52]} 9. Nxe4 {[%clk 0:02:38]}  fxe4 {[%clk 0:02:52]} 10. Ng5 {[%clk 0:02:39]}  d5 {[%clk 0:02:50]} 11. cxd5 {[%clk 0:02:37]}  cxd5 {[%clk 0:02:50]} 12. h4 {[%clk 0:02:29]}  h6 {[%clk 0:02:43]} 13. Nh3 {[%clk 0:02:28]}  Qb6 {[%clk 0:02:42]} 14. Be3 {[%clk 0:02:26]}  Nc6 {[%clk 0:02:27]} 15. Nf4 {[%clk 0:02:23]}  Rxf4 {[%clk 0:02:26]} 16. Bxf4 {[%clk 0:02:16]}  Nxd4 {[%clk 0:02:20]} 17. e3 {[%clk 0:02:15]}  e5 {[%clk 0:02:20]} 18. Bxh6 {[%clk 0:01:57]}  Bxh6 {[%clk 0:02:16]} 19. exd4 {[%clk 0:01:57]}  exd4 {[%clk 0:02:15]} 20. Kh2 {[%clk 0:01:42]}  Bf5 {[%clk 0:02:07]} 21. g4 {[%clk 0:01:36]}  Bf4+ {[%clk 0:02:05]} 22. Kg1 {[%clk 0:01:32]}  Be6 {[%clk 0:01:51]} 23. b4 {[%clk 0:01:26]}  Qd8 {[%clk 0:01:50]} 24. g5 {[%clk 0:01:22]}  d3 {[%clk 0:01:48]} 25. b5 {[%clk 0:01:15]}  Qc7 {[%clk 0:01:40]} 26. a4 {[%clk 0:01:08]}  Bh2+ {[%clk 0:01:39]} 27. Kh1 {[%clk 0:01:07]}  Qf4 {[%clk 0:01:40]} 28. f3 {[%clk 0:00:01]}  Qxh4 {[%clk 0:01:38]} 29. fxe4 {[%clk 0:00:00]}  Bg3+ {[%clk 0:01:37]} 0-1